Workbook

Sheet Relatório Liquidação
X1: -4.183675628e-11
E2: CRI União do Lago - Mapa de Liquidação
B7: Natureza do Pagamento | C7: Série | D7: Data | E7: PU Liquidação | F7: Quantidade | G7: Lançamento | H7: Razão Social | I7: CNPJ | J7: Número | K7: Banco | L7: Agência | M7: Conta | N7: ISS | O7: Valor do Serviço | P7: Gross-Up | Q7: Valor Bruto NF | R7: Retenção NF | S7: Retenção | T7: Valor | U7: Observação
B8: Integralização | C8: 499 | D8: 2021-01-19 | E8: 1000 | F8: 15050 | G8: Integralização | T8: =E8*F8 -> 15050000
B9: Integralização | C9: 500 | D9: 2021-01-19 | E9: 1000 | F9: 6450 | G9: Integralização | T9: =E9*F9 -> 6450000
B10: Integralização | C10: 0 | D10: 2021-01-19 | E10: 0 | F10: 0 | G10: Integralização | T10: 0
B11: Integralização | C11: 0 | D11: 2021-01-19 | E11: 0 | F11: 0 | G11: Integralização | T11: 0
B12: Integralização | C12: 0 | D12: 2021-01-19 | E12: 0 | F12: 0 | G12: Integralização | T12: 0
B13: Integralização | C13: 0 | D13: 2021-01-19 | E13: 0 | F13: 0 | G13: Integralização | T13: 0
B14: Integralização | C14: Total Dia | G14: Total Integralização | T14: =SUM(T8:T13) -> 21500000
B15: Transferência | G15: Fee Estruturação | H15: TForte Participação Ltda | I15: 21.567.223/0001-05 | J15: 341 | K15: Itaú Unibanco S.A. | L15: 0869-8 | M15: 12663-1 | N15: N/A | O15: 215000 | P15: 0.1115 | Q15: =O15/(1-P15) -> 241980.8666 | R15: 0.0615 | S15: =R15*Q15 -> 14881.8233 | T15: =Q15*(1-R15) -> 227099.0433
B16: Transferência | G16: Taxa de Sucesso | H16: TForte Participação Ltda | I16: 21.567.223/0001-05 | J16: 341 | K16: Itaú Unibanco S.A. | L16: 0869-8 | M16: 12663-1 | N16: N/A | O16: 129000 | P16: 0.1115 | Q16: 145188.52 | R16: 0.0615 | S16: =R16*Q16 -> 8929.093979 | T16: 136259.426
B17: Transferência | G17: Comissão Firme | H17: TForte Participação Ltda | I17: 21.567.223/0001-05 | J17: 341 | K17: Itaú Unibanco S.A. | L17: 0869-8 | M17: 12663-1 | N17: N/A | O17: 0 | P17: 0.1115 | Q17: 0 | R17: 0.0615 | S17: =+R17*Q17 -> 0 | T17: 0
B18: Transferência | G18: Originador | H18: 0 | I18: 0 | L18: 0 | M18: 0 | O18: 0 | P18: 0 | Q18: 0 | R18: 0 | S18: 0 | T18: 0
B19: Aguardar Transferência | G19: Advogados - Terceiros | O19: 0 | P19: 0 | Q19: 0 | R19: 0 | S19: 0 | T19: 0
B20: Aguardar Transferência | G20: Despachante | H20: Duudocs serviços administrativos Ltda. | I20: 32.437.359/0001-17 | J20: 341 | K20: Itaú Unibanco S.A. | L20: 350 | M20: 32511-4 | N20: N/A | O20: 4550 | P20: 0 | Q20: 4550 | R20: 0 | S20: 0 | T20: 4550
B21: Aguardar Transferência | G21: Advogados - Assessoria | H21: MANASSERO E CAMPELLO SOCIEDADE DE ADVOGADOS | I21: 19.010.359/0001-78 | O21: 50500 | P21: 0 | Q21: 50500 | R21: 0 | S21: 0 | T21: 50500
B22: Aguardar Transferência | G22: Coordenador Líder | H22: TERRA INVESTIMENTOS DTVM LTDA. | I22: 03.751.794/0001-13 | J22: 237 | K22: Banco Bradesco S.A. | L22: 560 | M22: 0156021-2 | N22: N/A | O22: 14687.5 | P22: 0.0965 | Q22: 16256.22579 | R22: 0 | S22: 0 | T22: 16256.22579
B23: Aguardar Transferência | G23: Engenharia | H23: HARCA ENGENHARIA EIRELI - ME | I23: 20.620.442/0001-48 | J23: 003 | K23: Caixa Econômica Federal | L23: 1959 | M23: 00000620-5 | N23: SIM | O23: 0 | P23: 0 | Q23: 0 | R23: 0 | S23: 0 | T23: 0
B24: Aguardar Transferência | G24: Auditoria Complementar | H24: CONVESTE AUDFILES SERVICOS FINANCEIROS LTDA | I24: 29.758.816/0001-60 | J24: 341 | K24: Itaú Unibanco S.A. | L24: 6630 | M24: 43542-5 | N24: N/A | O24: 27000 | P24: 0.1115 | Q24: 30388.29488 | R24: 0.0615 | S24: 1868.880135 | T24: 28519.41474
B25: Aguardar Transferência | G25: Auditoria Financeira | H25: CONVESTE AUDFILES SERVICOS FINANCEIROS LTDA | I25: 29.758.816/0001-60 | J25: 341 | K25: Itaú Unibanco S.A. | L25: 6630 | M25: 43542-5 | N25: N/A | O25: 0 | P25: 0.1115 | Q25: 0 | R25: 0.0615 | S25: 0 | T25: 0
B26: Aguardar Transferência | G26: Implantação | H26: CONVESTE AUDFILES SERVICOS FINANCEIROS LTDA | I26: 29.758.816/0001-60 | J26: 341 | K26: Itaú Unibanco S.A. | L26: 6630 | M26: 43542-5 | N26: N/A | O26: 0 | P26: 0.1115 | Q26: 0 | R26: 0.0615 | S26: 0 | T26: 0
B27: Aguardar Transferência | G27: Agente Fiduciário | H27: SIMPLIFIC PAVARINI DISTRIBUIDORA DE TÍTULOS E VALORES MOBILIÁRIOS LTDA. | I27: 15.227.994/0001-50 | J27: 237 | K27: Banco Bradesco S.A. | L27: 3428-2 | M27: 714.443-1 | N27: N/A | O27: 18000 | P27: 0.0965 | Q27: 19922.52352 | R27: 0.0615 | S27: 1225.235196 | T27: 18697.28832
B28: Aguardar Transferência | G28: Agente Custodiante | H28: SIMPLIFIC PAVARINI DISTRIBUIDORA DE TÍTULOS E VALORES MOBILIÁRIOS LTDA. | I28: 15.227.994/0001-50 | J28: 237 | K28: Banco Bradesco S.A. | L28: 3428-2 | M28: 714.443-1 | N28: N/A | O28: 4000 | P28: 0.0965 | Q28: 4427.227449 | R28: 0.0615 | S28: 272.2744881 | T28: 4154.952961
B29: Aguardar Transferência | G29: Agente Registrador CCI | H29: SIMPLIFIC PAVARINI DISTRIBUIDORA DE TÍTULOS E VALORES MOBILIÁRIOS LTDA. | I29: 15.227.994/0001-50 | J29: 237 | K29: Banco Bradesco S.A. | L29: 3428-2 | M29: 714.443-1 | N29: N/A | O29: 30240 | P29: 0.0965 | Q29: 33469.83951 | R29: 0.0615 | S29: 2058.39513 | T29: 31411.44438
B30: Provisão de Despesas | G30: Registro CCI B3 (Débito Automático) | H30: Forte Securitizadora S/A | I30: 12.979.898/0001-70 | S30: 0 | T30: 0
B31: Provisão de Despesas | G31: Registro CRI B3 (Débito Automático) | H31: Forte Securitizadora S/A | I31: 12.979.898/0001-70 | S31: 0 | T31: 8555
B32: Provisão de Despesas | G32: Custos Mov. CRI/CCI B3 (Estimado-Deb. Aut.) | H32: Forte Securitizadora S/A | I32: 12.979.898/0001-70 | S32: 0 | T32: 0
B33: Provisão de Despesas | G33: Análise B3 | H33: Forte Securitizadora S/A | I33: 12.979.898/0001-70 | S33: =+R33*Q33 -> 0 | T33: 0
B34: Provisão de Despesas | G34: Taxa de Registro - Anbima | H34: Forte Securitizadora S/A | I34: 12.979.898/0001-70 | S34: =+R34*Q34 -> 0 | T34: 1600
B35: Provisão de Despesas | G35: Rating | H35: Forte Securitizadora S/A | I35: 12.979.898/0001-70 | S35: =+R35*Q35 -> 0 | T35: 26660
G36: Retenção de Impostos sobre NFs | T36: =SUM(T37:T46) -> 29235.70223
B37: Retenção de Impostos | G37: Imposto - TForte Participação Ltda | H37: TForte Participação Ltda | I37: 21.567.223/0001-05 | T37: =SUMIF($I$15:$I$35,I37,$S$15:$S$35) -> 23810.91728
B38: Retenção de Impostos | G38: Imposto - Originador | H38: 0 | I38: 0 | T38: =SUMIF($I$15:$I$34,I38,$S$15:$S$34) -> 0
B39: Retenção de Impostos | G39: Imposto - Assessor Legal XP | T39: 0
B40: Retenção de Impostos | G40: Imposto - Assessor Legal | T40: 0
B41: Retenção de Impostos | G41: Imposto - Assessor Legal | T41: 0
B42: Retenção de Impostos | G42: Imposto - Coordenador Líder | H42: TERRA INVESTIMENTOS DTVM LTDA. | I42: 03.751.794/0001-13 | T42: 0
B43: Retenção de Impostos | G43: Imposto - Engenharia | H43: HARCA ENGENHARIA EIRELI - ME | I43: 20.620.442/0001-48 | T43: 0
B44: Retenção de Impostos | G44: Imposto - Auditoria | H44: CONVESTE AUDFILES SERVICOS FINANCEIROS LTDA | I44: 29.758.816/0001-60 | T44: 1868.880135
B45: Retenção de Impostos | G45: Imposto - Agente Fiduciário | H45: SIMPLIFIC PAVARINI DISTRIBUIDORA DE TÍTULOS E VALORES MOBILIÁRIOS LTDA. | I45: 15.227.994/0001-50 | T45: 3555.904815 | Y45: Integralização
B46: Retenção de Impostos | G46: Imposto - Agente Custodiante | H46: 0 | I46: 0 | T46: 0 | Y46: Integralização
B47: Transferência | G47: Reembolso Despesas | H47: Forte Securitizadora S/A | I47: 12.979.898/0001-70 | J47: 341 | K47: Itaú Unibanco S.A. | L47: 0869 | M47: 13447-8 | T47: 0
B48: Transferência | G48: Retenção de PMT | H48: Forte Securitizadora S/A | I48: 12.979.898/0001-70 | J48: 237 | K48: Banco Bradesco S.A. | L48: 3391 | M48: 7802-6 | T48: 0
B49: Transferência | G49: Quitação de Dividas | H49: Forte Securitizadora S/A | I49: 12.979.898/0001-70 | J49: 237 | K49: Banco Bradesco S.A. | L49: 3391 | M49: 7802-6 | T49: 0
B50: Transferência | G50: Fundo de Juros | H50: Forte Securitizadora S/A | I50: 12.979.898/0001-70 | J50: 237 | K50: Banco Bradesco S.A. | L50: 3391 | M50: 7802-6 | T50: 0
B51: Transferência | G51: Fundo de Concessão | H51: Forte Securitizadora S/A | I51: 12.979.898/0001-70 | J51: 237 | K51: Banco Bradesco S.A. | L51: 3391 | M51: 7802-6 | T51: 0
B52: Transferência | G52: Fundo de Despesa | H52: Forte Securitizadora S/A | I52: 12.979.898/0001-70 | J52: 237 | K52: Banco Bradesco S.A. | L52: 3391 | M52: 7802-6 | T52: 0
B53: Transferência | G53: Fundo de Reserva | H53: Forte Securitizadora S/A | I53: 12.979.898/0001-70 | J53: 237 | K53: Banco Bradesco S.A. | L53: 3391 | M53: 7802-6 | T53: 446731.45
B54: Transferência | G54: Fundo de Obra | H54: Forte Securitizadora S/A | I54: 12.979.898/0001-70 | J54: 237 | K54: Banco Bradesco S.A. | L54: 3391 | M54: 7802-6 | T54: 0
B55: Transferência | G55: Livre Destinação | H55: PARQUE DOS GIRASSÓIS EMPREENDIMENTOS IMOBILIÁRIOS SPE LTDA. | I55: 28.073.290/0001-12 | J55: 237 | K55: Banco Bradesco S.A. | L55: 2397 | M55: 69694-3 | T55: 0
B56: Transferência | G56: Livre Destinação - Por Conta e Ordem | T56: =-SUM(-T14,T15:T36,T47:T55) -> 20469770.05
B57: Total Dia | T57: =-SUM(-T14,T15:T36,T47:T56) -> 0 | Y57: Reembolso Forte
B59: Integralização | C59: 501 | D59: 2021-02-24 | E59: 1000 | F59: 1470 | G59: Integralização | T59: =E59*F59 -> 1470000
B60: Integralização | C60: 502 | D60: 2021-02-24 | E60: 1144.185972 | F60: 630 | G60: Integralização | T60: =E60*F60 -> 720837.1622
B61: Integralização | C61: Total Dia | G61: Total Integralização | T61: =SUM(T59:T60) -> 2190837.162
B62: Transferência | G62: Fee Estruturação | H62: TForte Participação Ltda | I62: 21.567.223/0001-05 | J62: 341 | K62: Itaú Unibanco S.A. | L62: 0869-8 | M62: 12663-1 | N62: N/A | O62: =1%*T61 -> 21908.37162 | P62: 0.1115 | Q62: =O62/(1-P62) -> 24657.70582 | R62: 0.0615 | S62: =R62*Q62 -> 1516.448908 | T62: =Q62*(1-R62) -> 23141.25691
B63: Transferência | G63: Taxa de Sucesso | H63: TForte Participação Ltda | I63: 21.567.223/0001-05 | J63: 341 | K63: Itaú Unibanco S.A. | L63: 0869-8 | M63: 12663-1 | N63: N/A | O63: =0.6%*T61 -> 13145.02297 | P63: 0.1115 | Q63: 14794.62349 | R63: 0.0615 | S63: =R63*Q63 -> 909.8693448 | T63: 13884.75415
G64: Retenção de Impostos sobre NFs | T64: =SUM(T65:T65) -> 2426.318253
B65: Retenção de Impostos | G65: Imposto - TForte Participação Ltda | H65: TForte Participação Ltda | I65: 21.567.223/0001-05 | T65: =SUM(S62:S63) -> 2426.318253
B66: Transferência | G66: Fundo de Reserva | H66: Forte Securitizadora S/A | I66: 12.979.898/0001-70 | J66: 237 | K66: Banco Bradesco S.A. | L66: 3391 | M66: 7802-6 | T66: 50070.79
B67: Transferência | G67: Livre Destinação | H67: PARQUE DOS GIRASSÓIS EMPREENDIMENTOS IMOBILIÁRIOS SPE LTDA. | I67: 28.073.290/0001-12 | J67: 237 | K67: Banco Bradesco S.A. | L67: 2397 | M67: 69694-3 | T67: =T61-SUM(T62:T64,T66) -> 2101314.043
B68: Total Dia | T68: =-SUM(-T61,T62:T64,T66:T67) -> 0
B70: Integralização | C70: 501 | D70: 2021-09-21 | E70: 971.8794191 | F70: 1530 | G70: Integralização | T70: =E70*F70 -> 1486975.511
B71: Integralização | C71: 502 | D71: 2021-09-21 | E71: 978.3225713 | F71: 655 | G71: Integralização | T71: =E71*F71 -> 640801.2842
B72: Integralização | C72: Total Dia | G72: Total Integralização | T72: =SUM(T70:T71) -> 2127776.795
B73: Transferência | G73: Fee Estruturação | H73: TForte Participação Ltda | I73: 21.567.223/0001-05 | J73: 341 | K73: Itaú Unibanco S.A. | L73: 0869-8 | M73: 12663-1 | N73: N/A | O73: =1%*T72 -> 21277.76795 | P73: 0.1115 | Q73: =O73/(1-P73) -> 23947.96618 | R73: 0.0615 | S73: =R73*Q73 -> 1472.79992 | T73: =Q73*(1-R73) -> 22475.16626
B74: Transferência | G74: Taxa de Sucesso | H74: TForte Participação Ltda | I74: 21.567.223/0001-05 | J74: 341 | K74: Itaú Unibanco S.A. | L74: 0869-8 | M74: 12663-1 | N74: N/A | O74: =0.6%*T72 -> 12766.66077 | P74: 0.1115 | Q74: 14368.77971 | R74: 0.0615 | S74: =R74*Q74 -> 883.6799522 | T74: 13485.09976
G75: Retenção de Impostos sobre NFs | T75: =SUM(T76:T76) -> 2356.479873
B76: Retenção de Impostos | G76: Imposto - TForte Participação Ltda | H76: TForte Participação Ltda | I76: 21.567.223/0001-05 | T76: =SUM(S73:S74) -> 2356.479873
B77: Transferência | G77: Fundo de Reserva | H77: Forte Securitizadora S/A | I77: 12.979.898/0001-70 | J77: 237 | K77: Banco Bradesco S.A. | L77: 3391 | M77: 7802-6 | T77: 55955.44
B78: Transferência | G78: Retenção | H78: Forte Securitizadora S/A | I78: 12.979.898/0001-70 | J78: 237 | K78: Banco Bradesco S.A. | L78: 3391 | M78: 7802-6 | T78: 27397.17
B79: Transferência | G79: Livre Destinação | H79: PARQUE DOS GIRASSÓIS EMPREENDIMENTOS IMOBILIÁRIOS SPE LTDA. | I79: 28.073.290/0001-12 | J79: 237 | K79: Banco Bradesco S.A. | L79: 2397 | M79: 69694-3 | T79: =T72-SUM(T73:T75,T77,T78) -> 2006107.44
B80: Total Dia | T80: =-SUM(-T72,T73:T75,T77:T79) -> 0
